bitfinex/quotes_ETHUSD_20240710
["timestamp","ask_amount","ask_price","bid_price","bid_amount"]
[1720629433863,1.10212895,3144.2,3144.0,2.2698]
[1720629434095,2.33802781,3144.7,3143.6,5.2698]
[1720629434247,6.45564932,3144.6,3143.6,5.2698]
[1720629434446,1.72992151,3144.5,3143.6,5.2698]
[1720629434646,1.72992151,3144.4,3143.6,5.2698]
[1720629434894,1.72992151,3144.4,3143.1,7.3808608]
[1720629434895,4.11762151,3144.3,3143.1,7.3808608]
[1720629435066,2.33802781,3143.9,3143.1,7.3808608]
[1720629435379,2.39436679,3143.6,3142.9,0.06467803]
[1720629435586,1.96975974,3143.5,3142.9,0.06467803]
[1720629435740,1.73032306,3143.4,3142.9,0.06467803]
[1720629435941,1.73032306,3143.3,3142.9,0.06467803]
[1720629436164,1.73032306,3143.2,3142.9,0.06467803]
[1720629436365,1.10212895,3143.1,3142.9,0.06467803]
[1720629436564,1.10212895,3143.3,3142.9,0.06467803]
[1720629436772,0.96655176,3143.2,3142.9,0.06467803]
[1720629436940,1.10212895,3143.1,3142.9,0.06467803]
[1720629438778,1.1026979,3143.0,3142.9,0.06467803]
[1720629438952,1.10268582,3143.0,3142.9,0.06467803]
[1720629440344,1.10268582,3143.0,3142.9,0.1209563]
[1720629442044,1.1026974,3143.0,3142.9,0.1209563]
[1720629442250,1.10269724,3143.0,3142.9,0.1209563]
[1720629443153,1.10267324,3143.0,3142.9,0.1209563]
[1720629443683,0.33288065,3143.6,3142.9,0.36276193]
[1720629443870,1.10257247,3143.5,3142.9,3.36276193]
[1720629444189,1.10257247,3143.4,3142.9,3.1209563]
[1720629444387,0.33288065,3143.6,3142.9,3.1209563]
[1720629444388,1.10257247,3143.5,3142.9,0.1209563]
[1720629444572,0.33288065,3143.6,3142.9,0.1209563]
[1720629444573,1.10257247,3143.4,3142.9,0.1209563]
[1720629444780,0.33288065,3143.6,3142.9,0.1209563]
[1720629445071,1.10248864,3143.5,3142.9,0.1209563]
[1720629445386,3.46598864,3143.4,3142.9,0.1209563]
[1720629445689,1.4491641,3143.3,3142.9,0.1209563]
[1720629445987,1.10256524,3143.2,3142.9,0.1209563]
[1720629446284,0.33288065,3143.6,3142.9,0.1209563]
[1720629446586,1.10253684,3143.5,3142.9,0.1209563]
[1720629446790,1.10253684,3143.4,3142.9,2.5648563]
[1720629446970,1.10253684,3143.3,3143.0,3.0]
[1720629447283,0.33288065,3143.6,3143.0,3.0]
[1720629447590,1.10250954,3143.5,3143.1,0.05662525]
[1720629447880,1.10250954,3143.4,3143.0,3.0]
[1720629448081,1.10250954,3143.5,3143.2,0.05658004]
[1720629448284,1.10250954,3143.5,3143.1,0.05663125]
[1720629448483,1.48239856,3143.5,3143.3,0.05652884]
[1720629448668,1.10250954,3143.4,3143.2,0.05658004]
[1720629448873,1.10250954,3143.3,3143.0,3.0]
[1720629449085,2.3635,3143.7,3143.0,3.0]
[1720629449392,1.10250949,3143.6,3143.0,3.0]
[1720629449696,1.10250949,3143.5,3143.0,3.5508578]
[1720629449846,2.74338806,3144.4,3143.0,3.5508578]
[1720629449847,2.3291,3144.3,3143.0,3.5508578]
[1720629450050,1.10236751,3144.2,3143.0,3.5508578]
[1720629450270,1.73036197,3144.1,3143.0,3.0]
[1720629450449,1.73036197,3144.0,3143.0,3.0]
[1720629450795,1.10236751,3143.9,3143.0,3.0]
[1720629451081,2.3291,3143.7,3143.0,3.0]
[1720629451287,1.33527751,3143.6,3143.0,3.0]
[1720629451584,1.10236751,3143.5,3143.0,3.0]
[1720629452147,0.62835969,3143.4,3143.0,3.0]
[1720629452446,1.10268028,3143.3,3143.0,3.0]
[1720629452647,1.10268028,3143.2,3143.0,3.0]
[1720629452858,1.10268028,3143.5,3143.0,3.0]
[1720629453883,1.10268028,3143.5,3142.9,7.44553883]
[1720629454068,0.6283856,3143.4,3142.9,7.44553883]
[1720629454273,1.27578687,3143.3,3142.9,7.44553883]
[1720629454469,1.10268028,3143.2,3142.9,7.44553883]
[1720629454851,1.10268028,3143.2,3142.9,0.06467803]
[1720629455476,1.10268028,3143.2,3143.0,0.05673841]
[1720629455859,1.10272833,3143.1,3143.0,0.05673841]
[1720629458622,1.43538753,3143.1,3143.0,0.05673841]
[1720629459205,2.59615118,3143.1,3143.0,0.05673841]
[1720629459509,3.95849837,3143.1,3143.0,0.05673841]
[1720629461098,4.58708725,3143.1,3143.0,0.05673841]
[1720629461994,5.13708725,3143.1,3143.0,0.05673841]
[1720629462627,3.4057663,3143.1,3143.0,0.05673841]
[1720629462935,5.13724591,3143.1,3143.0,0.05673841]
[1720629464002,4.50865197,3143.1,3142.9,0.06467803]
[1720629464197,1.10288567,3143.0,3142.9,0.06467803]
[1720629465848,1.10288567,3143.0,3142.9,0.11986986]
[1720629466140,1.10263517,3143.0,3142.9,0.11986986]
[1720629469534,1.10279839,3143.0,3142.9,0.11986986]
[1720629472854,0.33285118,3143.1,3142.9,0.11986986]
[1720629473011,1.10267279,3143.0,3142.9,0.11986986]
[1720629474015,1.10267279,3143.0,3142.9,2.37936986]
[1720629474225,1.10267279,3143.0,3142.9,2.61730685]
[1720629475122,1.10267279,3143.0,3142.9,2.37936986]
[1720629476331,1.10259915,3143.0,3142.9,2.37936986]
[1720629476514,1.1025991,3143.0,3142.9,2.37936986]
[1720629479857,1.10261557,3143.0,3142.9,2.37936986]
[1720629480473,1.10241863,3143.0,3142.9,2.37936986]
[1720629480798,0.33285118,3143.1,3142.9,3.19750685]
[1720629481002,0.33285118,3143.1,3143.0,3.0]
[1720629481173,1.43526283,3143.1,3143.0,3.05324853]
[1720629481371,0.33285118,3143.1,3143.0,3.05324853]
[1720629482062,1.43525899,3143.1,3143.0,0.05324853]
[1720629482283,2.06352961,3143.1,3143.0,3.05324853]
[1720629482480,2.26988257,3143.1,3143.0,3.05324853]
[1720629482982,2.26988257,3143.1,3143.0,0.05324853]
[1720629483188,4.70541692,3143.1,3143.0,0.05324853]
[1720629483497,2.27031692,3143.1,3143.0,0.05324853]
[1720629483663,2.06396396,3143.1,3143.0,0.05324853]
[1720629484885,1.43557632,3143.1,3143.0,0.05324853]
[1720629485512,1.10272514,3143.1,3143.0,0.05324853]
[1720629485687,0.33280525,3143.6,3143.0,0.05324853]
[1720629485883,1.10239544,3143.5,3143.0,0.05324853]
[1720629486205,1.10239544,3143.4,3143.0,0.88254119]
[1720629486412,1.10239544,3143.5,3143.0,0.05324853]
[1720629486628,1.10250694,3143.4,3143.0,3.05324853]
[1720629486835,1.73071644,3143.3,3143.0,0.05324853]
[1720629487129,1.73071644,3143.2,3143.0,0.05324853]
[1720629487314,1.73071644,3143.1,3143.0,0.05324853]
[1720629487513,2.13755192,3143.1,3143.0,0.05324853]
[1720629488189,4.58095192,3143.1,3143.0,0.05324853]
[1720629489239,6.91859028,3143.1,3143.0,0.05324853]
[1720629489932,6.91968152,3143.1,3143.0,0.05324853]
[1720629490316,4.58158143,3143.1,3143.0,0.05324853]
[1720629491244,4.58166137,3143.1,3143.0,0.05324853]
[1720629491414,6.91962382,3143.1,3143.0,0.05324853]
[1720629491624,4.58166137,3143.1,3143.0,0.05324853]
[1720629491825,5.13166137,3143.1,3143.0,0.05324853]
[1720629493320,5.13180179,3143.1,3143.0,0.05324853]
[1720629494820,1.73156631,3143.1,3143.0,0.05324853]
[1720629496755,1.73107489,3143.1,3143.0,0.05324853]
[1720629497356,1.1027066,3143.1,3143.0,0.05324853]
[1720629499471,1.1027066,3143.1,3143.0,2.50124853]
[1720629500092,0.33280525,3143.6,3143.0,2.50124853]
[1720629500231,1.10254722,3143.5,3143.0,2.75784119]
[1720629500436,1.10254722,3143.4,3143.1,3.0]
[1720629500665,0.33280525,3143.6,3143.1,3.0]
[1720629500666,1.10254722,3143.3,3143.2,0.05145164]
[1720629501949,1.10254722,3143.3,3142.9,0.06467803]
[1720629501950,1.73073713,3143.3,3142.9,0.06467803]
[1720629502147,0.33280525,3143.6,3143.2,0.05148144]
[1720629502351,1.61700543,3143.5,3142.9,0.06467803]
[1720629502548,1.73085415,3143.4,3143.3,0.05143024]
[1720629502777,1.73085415,3143.4,3142.9,0.06467803]
[1720629502960,0.5143965,3143.5,3143.3,0.0512872]
[1720629503134,1.10269915,3143.4,3143.3,0.0512872]
[1720629503332,4.56035895,3143.4,3142.9,0.06467803]
[1720629503551,0.49159113,3143.4,3142.9,0.06467803]
[1720629503790,1.10273387,3143.3,3143.0,0.05145274]
[1720629503973,1.7311364,3143.2,3143.0,0.05145274]
[1720629504133,1.7311364,3143.1,3143.0,0.05145274]
[1720629505374,3.9860364,3143.1,3143.0,0.05145274]
[1720629507081,3.98614115,3143.1,3143.0,0.05145274]
[1720629507265,4.65182313,3143.1,3143.0,0.05145274]
[1720629508140,2.39692313,3143.1,3143.0,0.05145274]
[1720629510556,2.39687683,3143.1,3143.0,0.05145274]
[1720629511880,7.16058107,3143.1,3143.0,0.05145274]
[1720629512181,4.15629485,3143.1,3143.0,0.05145274]
[1720629513951,4.15646205,3143.1,3143.0,0.05145274]
[1720629514473,6.49491204,3143.1,3143.0,0.05145274]
[1720629515584,4.15646205,3143.1,3143.0,0.05145274]
[1720629515785,4.57210826,3143.1,3143.0,0.05145274]
[1720629517182,6.91032435,3143.1,3143.0,0.05145274]
[1720629517486,4.48521156,3143.1,3143.0,0.05145274]
[1720629517685,2.14704652,3143.1,3143.0,0.05145274]
[1720629518494,4.48521156,3143.1,3143.0,0.05145274]
[1720629518649,4.8179505,3143.1,3143.0,0.05145274]
[1720629518849,5.3679505,3143.1,3143.0,0.05145274]
[1720629520754,5.99629017,3143.1,3143.0,0.05145274]
[1720629520993,5.36777636,3143.1,3142.9,0.06467803]
[1720629521155,2.49785302,3143.0,3142.9,0.06467803]
[1720629522196,4.83590885,3143.0,3142.9,0.06467803]
[1720629522876,5.80968147,3143.0,3142.9,0.06467803]
[1720629523091,3.04785302,3143.0,3142.9,0.06467803]
[1720629523394,5.80998855,3143.0,3142.9,0.06467803]
[1720629523957,3.04785302,3143.0,3142.9,0.06467803]
[1720629524219,1.31651764,3143.0,3142.9,0.06467803]
[1720629524353,2.28153812,3143.0,3142.9,0.06467803]
[1720629524557,5.04314397,3143.0,3142.9,0.06467803]
[1720629526992,2.28153812,3143.0,3142.9,0.06467803]
[1720629527290,4.63303812,3143.0,3142.9,0.06467803]
[1720629527671,4.96570315,3143.0,3142.9,0.06467803]
[1720629527875,5.86664491,3143.0,3142.9,0.06467803]
[1720629528556,8.66864491,3143.0,3142.9,0.06467803]
[1720629530394,11.98151529,3143.0,3142.9,0.06467803]
[1720629531196,8.66878334,3143.0,3142.9,0.06467803]
[1720629532478,5.86678334,3143.0,3142.9,0.06467803]
[1720629532994,9.17883281,3143.0,3142.9,0.06467803]
[1720629533394,5.86678334,3143.0,3142.9,0.06467803]
[1720629534215,9.17883281,3143.0,3142.9,0.06467803]
[1720629534561,5.86668367,3143.0,3142.9,0.06467803]
[1720629534792,9.17873314,3143.0,3142.9,0.06467803]
[1720629535402,5.86668367,3143.0,3142.9,0.06467803]
[1720629536130,5.31668367,3143.0,3142.9,0.06467803]
[1720629536331,7.74309273,3143.0,3142.9,0.06467803]
[1720629536493,4.98438408,3143.0,3142.9,0.06467803]
[1720629538012,5.53412422,3143.0,3142.9,0.06467803]
[1720629538218,8.29258238,3143.0,3142.9,0.06467803]
[1720629539429,5.53412422,3143.0,3142.9,0.06467803]
[1720629540427,3.18262422,3143.0,3142.9,0.06467803]
[1720629540634,2.63262422,3143.0,3142.9,0.06467803]
[1720629541395,2.63267978,3143.0,3142.9,0.06467803]
[1720629541620,1.73173802,3143.0,3142.9,0.06467803]
[1720629542106,2.28173802,3143.0,3142.9,0.06467803]
[1720629542309,5.04004369,3143.0,3142.9,0.06467803]
[1720629543699,2.28173802,3143.0,3142.9,0.06467803]
[1720629544595,2.61381259,3143.0,3142.9,0.06467803]
[1720629544796,1.78813467,3143.0,3142.9,0.06467803]
[1720629545031,3.52002313,3143.0,3142.9,0.06467803]
[1720629547097,9.0922726,3143.0,3142.9,0.06467803]
[1720629548343,9.09235426,3143.0,3142.9,0.06467803]
[1720629549052,5.78030479,3143.0,3142.9,0.06467803]
[1720629549724,12.09235426,3143.0,3142.9,0.06467803]
[1720629549911,8.78030479,3143.0,3142.9,0.06467803]
[1720629552149,9.95045596,3143.0,3142.9,0.06467803]
[1720629553541,13.2636812,3143.0,3142.9,0.06467803]
[1720629554303,9.95045596,3143.0,3142.9,0.06467803]
[1720629555129,9.95028841,3143.0,3142.9,0.06467803]
[1720629555354,13.2638547,3143.0,3142.9,0.06467803]
[1720629555956,11.0036547,3143.0,3142.9,0.06467803]
[1720629556360,7.35801384,3143.0,3142.9,0.06467803]
[1720629556520,10.67158013,3143.0,3142.9,0.06467803]
[1720629557651,10.67266516,3143.0,3142.9,0.06467803]
[1720629557820,7.35801384,3143.0,3142.9,0.06467803]
[1720629558030,10.67267006,3143.0,3142.9,0.06467803]
[1720629558452,7.35801384,3143.0,3142.9,0.06467803]
[1720629558678,7.35795051,3143.0,3142.9,0.06467803]
[1720629561978,5.6260601,3143.0,3142.9,0.06467803]
[1720629562188,7.35800817,3143.0,3142.9,0.06467803]
[1720629563476,5.6260601,3143.0,3142.9,0.06467803]
[1720629563686,7.35792459,3143.0,3142.9,0.06467803]
[1720629565556,5.6260601,3143.0,3142.9,0.06467803]
[1720629565876,7.35793121,3143.0,3142.9,0.06467803]
[1720629566648,5.63793121,3143.0,3142.9,0.06467803]
[1720629566847,6.80793121,3143.0,3142.9,0.06467803]
[1720629567991,7.35793121,3143.0,3142.9,0.06467803]
[1720629569050,6.7290987,3143.0,3142.9,0.06467803]
[1720629569313,7.3578978,3143.0,3142.9,0.06467803]
[1720629572572,7.35780578,3143.0,3142.9,0.06467803]
[1720629573308,4.73174568,3143.0,3142.9,0.06467803]
[1720629573506,2.90174568,3143.0,3142.9,0.06467803]
[1720629573875,8.49666842,3143.0,3142.1,2.3782]
[1720629574076,1.17,3142.4,3142.2,0.04457326]
[1720629574377,1.73174568,3142.3,3142.1,2.3782]
[1720629574574,1.73174568,3142.2,3142.1,2.3782]
[1720629575399,1.73174568,3142.2,3142.1,2.42051784]
[1720629575916,4.49082274,3142.4,3142.1,2.42051784]
[1720629576077,1.73214902,3142.3,3142.1,2.42051784]
[1720629576281,1.73214902,3142.2,3142.1,2.42051784]
[1720629578708,2.06500498,3142.2,3142.1,2.42051784]
[1720629579510,0.96183838,3142.2,3142.1,2.42051784]
[1720629579813,4.83187111,3142.2,3142.1,2.42051784]
[1720629579988,4.83187111,3142.2,3142.1,2.08765729]
[1720629580395,2.06503238,3142.2,3142.1,2.08765729]
[1720629582882,2.06479887,3142.2,3142.1,2.08765729]
[1720629583108,2.06480735,3142.2,3142.1,2.08765729]
[1720629583688,4.40699483,3142.2,3142.1,2.08765729]
[1720629583889,2.06480735,3142.2,3142.1,2.08765729]
[1720629584089,2.06480735,3142.2,3142.1,2.41342302]
[1720629586217,0.96171292,3142.2,3142.1,2.41342302]
[1720629586420,2.0644117,3142.2,3142.1,2.41342302]
[1720629586582,2.6930487,3142.2,3142.1,2.41342302]
[1720629589696,0.96149184,3142.2,3142.1,2.41342302]
[1720629589900,2.69311963,3142.2,3142.1,2.41342302]
[1720629590717,2.69311963,3142.2,3142.1,2.08765729]
[1720629591785,2.69311963,3142.2,3142.1,0.04231784]
[1720629591988,5.03462747,3142.2,3142.1,0.04231784]
[1720629592182,5.03462747,3142.2,3141.8,2.2895]
[1720629592408,1.73162779,3142.1,3141.8,2.2895]
[1720629592608,1.73162779,3142.0,3141.8,2.2895]
[1720629592924,1.73162779,3141.9,3141.8,2.2895]
[1720629593130,0.62878822,3141.9,3141.8,2.2895]
[1720629593803,1.7318281,3141.9,3141.8,2.2895]
[1720629596426,0.33285596,3142.2,3141.8,2.2895]
[1720629596740,3.4446061,3142.1,3141.8,2.2895]
[1720629596919,1.7320057,3142.0,3141.8,2.2895]
[1720629597117,1.7320057,3141.9,3141.8,2.2895]
[1720629599380,1.7320057,3141.9,3141.5,2.3868]
[1720629599539,1.7320057,3141.8,3141.5,2.3868]
[1720629599701,1.7320057,3141.7,3141.5,2.3868]
[1720629599903,1.17,3142.2,3141.5,2.3868]
[1720629600140,2.34167962,3142.0,3141.5,2.3868]
[1720629600306,1.73207907,3141.9,3141.5,2.3868]
[1720629600507,1.73207907,3141.8,3141.5,2.3868]
[1720629600749,1.73207907,3141.7,3141.5,2.3868]
[1720629600904,1.73207907,3141.6,3141.5,2.3868]
[1720629601738,1.73207907,3141.6,3141.3,3.0]
[1720629601900,2.34167962,3142.0,3141.3,3.0]
[1720629601901,1.73207907,3141.5,3141.3,3.0]
[1720629602106,1.10315093,3141.4,3141.3,3.0]
[1720629602304,1.17,3141.5,3141.0,7.3808608]
[1720629602610,1.73209687,3141.4,3141.0,7.3808608]
[1720629602842,1.73209687,3141.3,3141.0,7.3808608]
[1720629603020,1.73209687,3141.2,3141.0,7.3808608]
[1720629603232,1.17,3141.5,3141.0,7.3808608]
[1720629603433,1.73231395,3141.4,3141.0,7.3808608]
[1720629603760,2.02254535,3141.3,3140.9,2.4608]
[1720629603942,0.62905909,3141.2,3140.9,2.4608]
[1720629604123,1.73231395,3141.2,3140.9,2.4608]
[1720629604323,1.73231395,3141.1,3140.9,2.4608]
[1720629604552,1.73231395,3141.0,3140.9,2.4608]
[1720629604869,1.73231395,3141.0,3140.9,2.70688]
[1720629605027,1.10325486,3141.0,3140.9,6.87688]
[1720629605372,2.3416807,3142.1,3141.0,2.3712]
[1720629605653,4.07372162,3142.0,3141.3,1.17]
[1720629605858,1.73204092,3141.9,3141.3,1.17]
[1720629606029,1.73204092,3141.8,3141.4,0.04157289]
[1720629606220,1.73204092,3141.7,3141.4,0.04157289]
[1720629606421,1.73204092,3141.6,3141.0,5.3712]
[1720629606657,1.73239299,3141.5,3141.0,2.3712]
[1720629606917,1.73251716,3141.4,3141.1,0.04172669]
[1720629607163,1.17,3141.2,3140.7,3.0]
[1720629607322,1.73251716,3141.1,3140.8,0.04048313]
[1720629607664,1.73251716,3141.0,3140.6,2.3103]
[1720629607821,2.34041808,3141.3,3140.9,0.03925103]
[1720629608024,5.59433665,3141.2,3140.6,2.3103]
[1720629608233,1.73287676,3141.1,3140.6,2.3103]
[1720629608436,2.4869,3140.9,3140.7,0.03935359]
[1720629608638,2.90287676,3140.8,3140.7,0.03935359]
[1720629611665,0.62944548,3140.8,3140.0,3.4225]
[1720629611819,0.62944548,3140.8,3140.1,0.03697148]
[1720629613361,0.62957684,3140.7,3140.1,0.03697148]
[1720629613660,1.17,3140.9,3140.1,0.03697148]
[1720629613834,0.62958657,3140.8,3140.1,0.03697148]
[1720629614451,1.17,3141.1,3140.1,0.03697148]
[1720629614655,0.62950993,3141.0,3140.1,0.03697148]
[1720629615464,1.17,3140.9,3140.1,0.03697148]
[1720629616652,0.33274282,3141.2,3140.1,0.03697148]
[1720629616884,1.17,3141.0,3140.1,1.12100471]
[1720629617191,0.96221676,3141.2,3140.1,1.12100471]
[1720629617192,0.33274282,3141.2,3140.4,2.4363]
[1720629617494,1.17,3141.1,3140.5,0.03700455]
[1720629617787,0.9621789,3141.2,3140.5,0.03700455]
[1720629617788,1.17,3140.9,3140.5,0.03700455]
[1720629618297,1.17,3140.9,3140.1,4.08403323]
[1720629618467,1.17,3140.9,3140.6,0.03695326]
[1720629618799,0.33274282,3141.2,3140.7,0.03690198]
[1720629619098,1.17,3141.3,3140.7,0.03690198]
[1720629619251,0.62942141,3141.2,3140.6,2.4124]
[1720629619455,1.17,3141.3,3140.8,0.03685069]
[1720629619685,0.62940355,3141.2,3140.7,0.03690198]
[1720629619986,1.17,3141.3,3140.8,0.03685069]
[1720629620196,1.48755748,3141.3,3140.6,2.4124]
[1720629620493,1.17,3141.3,3140.9,0.03679941]
[1720629620789,1.17,3141.3,3141.0,0.03674813]
[1720629620994,1.10351239,3141.2,3140.6,2.4124]
[1720629621156,1.10351239,3141.2,3141.1,0.03669686]
[1720629621475,1.10351225,3141.2,3141.1,2.4124]
[1720629621799,1.17,3142.0,3141.1,2.80733686]
[1720629621968,1.10326104,3141.9,3141.1,2.4124]
[1720629622303,1.10326104,3141.8,3141.2,0.03664559]
[1720629622481,1.10326104,3141.9,3141.2,0.03664559]
[1720629622966,1.17,3141.8,3141.2,0.03664559]
[1720629623187,1.10326104,3141.7,3141.2,0.03664559]
[1720629623704,1.17,3142.0,3141.2,0.03664559]
[1720629623993,1.10329872,3141.9,3141.2,0.28155015]
[1720629624191,1.10329872,3141.8,3141.2,0.28155015]
[1720629624369,1.10329872,3141.7,3141.2,0.28155015]
[1720629624569,1.10329872,3141.6,3141.2,0.28155015]
[1720629624787,1.10329872,3141.5,3141.2,0.28155015]
[1720629625101,1.10329872,3141.4,3141.2,0.28155015]
[1720629625259,1.10329872,3141.3,3141.2,0.28155015]
[1720629625461,1.10329872,3141.3,3141.2,0.03664559]
[1720629627280,1.10321507,3141.3,3141.2,0.03664559]
[1720629629062,1.10321507,3141.3,3140.8,3.0]
[1720629629370,3.4801,3141.6,3140.8,3.0]
[1720629629371,1.10336654,3141.2,3140.8,3.0]
[1720629629596,1.10336654,3141.1,3140.9,0.03543702]
[1720629629824,3.4801,3141.6,3140.9,0.03543702]
[1720629629825,1.10336654,3141.0,3140.9,0.03543702]
[1720629630719,1.10342577,3141.0,3140.9,0.03543702]
[1720629631090,1.10342577,3141.0,3140.7,2.4469]
[1720629631395,1.10339211,3140.9,3140.8,0.0355257]
[1720629631784,1.10339211,3140.9,3140.8,0.06828069]
[1720629632093,1.10339211,3140.9,3140.8,3.31979876]
[1720629633312,1.10339211,3140.9,3140.8,3.06828069]
[1720629634134,1.10341269,3140.9,3140.8,3.06828069]
[1720629635415,4.22861798,3140.9,3140.8,0.06828069]
[1720629635813,4.22861798,3140.9,3139.7,2.4757233]
[1720629636134,2.38910481,3140.8,3139.8,0.0643738]
[1720629636298,1.73301798,3140.7,3139.8,0.0643738]
[1720629636495,1.73301798,3140.6,3139.7,2.4757233]
[1720629636721,1.10341269,3140.5,3139.7,2.4757233]
[1720629636933,1.10341269,3140.4,3139.8,0.0643738]
[1720629637135,1.10341269,3140.7,3139.8,0.0643738]
[1720629637350,0.62966906,3140.6,3139.7,2.4757233]
[1720629637523,1.10373903,3140.5,3139.7,2.4757233]
[1720629637705,1.10373903,3140.4,3139.8,0.0643738]
[1720629637904,0.65608683,3140.8,3139.8,0.0643738]
[1720629637905,1.10373903,3140.3,3139.8,0.0643738]
[1720629638135,1.10373903,3140.2,3139.8,3.0]
[1720629638335,1.10373903,3140.1,3139.9,2.95737233]
[1720629638524,2.33383614,3141.1,3140.0,3.0]
[1720629638725,1.73328449,3141.0,3140.0,3.0]
[1720629638903,1.73328449,3140.9,3140.1,0.06421674]
[1720629639108,1.73328449,3140.8,3140.1,0.06421674]
[1720629639417,1.73328449,3140.7,3140.2,0.06416439]
[1720629639744,1.1036843,3140.6,3140.2,0.06416439]
[1720629639921,1.1036843,3141.0,3139.9,2.4098]
[1720629640112,1.7332472,3140.9,3140.0,0.54098]
[1720629640330,1.1036843,3140.8,3140.1,2.4098]
[1720629640500,1.1036843,3140.7,3140.3,2.811]
[1720629640701,1.1036843,3140.6,3140.5,2.4098]
[1720629640901,2.33349598,3142.0,3140.5,5.4098]
[1720629641100,2.3299,3142.1,3140.5,5.47380737]
[1720629641101,4.0660049,3141.9,3140.5,5.47380737]
[1720629641345,4.0660049,3141.8,3140.5,5.47380737]
[1720629641641,1.73250892,3141.7,3140.5,5.47380737]
[1720629641938,1.90575981,3141.6,3140.5,5.47380737]
[1720629642113,1.73250892,3141.5,3140.5,5.47380737]
[1720629642314,1.73250892,3141.4,3140.5,5.47380737]
[1720629642516,1.73250892,3141.3,3140.5,5.47380737]
[1720629642845,1.10334113,3141.2,3140.5,5.47380737]
[1720629643047,1.10334113,3141.6,3140.5,5.47380737]
[1720629643248,1.73262707,3141.5,3140.6,0.57549074]
[1720629643451,1.73262707,3141.4,3140.6,3.57549074]
[1720629643747,1.73262707,3141.3,3140.7,0.06177457]
[1720629644045,1.10334113,3141.2,3140.7,0.06177457]
[1720629644228,1.10334113,3141.6,3140.7,0.06177457]
[1720629644430,1.73272521,3141.5,3140.7,0.06177457]
[1720629644663,1.73281412,3141.4,3140.7,0.06177457]
[1720629644847,1.73281412,3141.3,3140.7,0.06177457]
[1720629645048,2.4519,3141.4,3140.7,0.06177457]
[1720629645049,1.73281412,3141.2,3140.7,0.06177457]
[1720629645366,4.06802367,3141.1,3140.7,0.06177457]
[1720629645542,2.13961649,3141.0,3140.8,0.05983025]
[1720629645744,1.73281412,3140.9,3140.8,0.05983025]
[1720629645947,1.73281412,3140.9,3139.8,2.2909]
[1720629646150,4.06911638,3140.8,3139.8,2.2909]
[1720629646362,1.73281412,3140.7,3139.9,0.06030131]
[1720629646669,1.73281412,3140.6,3139.9,0.30675377]
[1720629646870,1.73281412,3140.5,3139.9,0.30675377]
[1720629647030,1.10347617,3140.4,3139.9,0.30675377]
[1720629647234,1.10347617,3140.8,3139.9,0.30675377]
[1720629647435,1.73307663,3140.7,3139.9,3.30675377]
[1720629647781,5.2629,3141.4,3140.0,0.55976538]
[1720629647950,1.10368156,3140.6,3140.0,0.06036276]
[1720629648295,1.7332783,3140.5,3140.1,0.06031041]
[1720629648446,1.10368156,3140.4,3140.1,0.06031041]
[1720629648648,0.62969453,3140.3,3139.7,3.1133233]
[1720629648849,0.33274599,3140.5,3139.7,3.1133233]
[1720629648850,1.10368156,3140.2,3139.7,3.1133233]
[1720629649175,1.10368156,3140.4,3139.7,4.16274171]
[1720629649336,1.73337647,3140.3,3139.7,0.1133233]
[1720629650300,0.62972756,3140.3,3139.8,0.06046747]
[1720629650452,1.10368156,3140.2,3139.8,0.06046747]
[1720629650655,1.10368156,3140.2,3139.7,0.1133233]
[1720629650955,1.73346996,3140.1,3139.9,0.06041511]
[1720629651152,1.10368156,3140.1,3139.8,0.06046747]
[1720629651389,1.10368156,3140.1,3139.7,0.1133233]
[1720629651390,1.10381978,3140.0,3139.7,0.1133233]
[1720629651592,1.10381978,3139.9,3139.7,0.1133233]
[1720629651770,1.10381978,3139.8,3139.7,0.1133233]
[1720629654929,1.1039664,3140.1,3139.7,0.1133233]
[1720629655227,1.7338532,3140.0,3139.7,0.1133233]
[1720629655382,1.1039664,3139.9,3139.7,0.1133233]
[1720629655586,1.1039664,3139.8,3139.7,0.1133233]
[1720629658003,2.33670428,3140.4,3139.7,0.1133233]
[1720629658333,2.00078539,3140.3,3139.7,0.1133233]
[1720629658537,1.73384036,3140.2,3139.7,0.1133233]
[1720629658837,1.73384036,3140.1,3139.7,0.1133233]
[1720629659135,1.73384036,3140.0,3139.7,0.1133233]
[1720629659433,1.10393026,3139.9,3139.7,0.1133233]
[1720629659652,1.10393026,3139.8,3139.7,0.1133233]
[1720629659853,0.26694503,3140.3,3139.7,0.1133233]
[1720629659854,1.10393026,3140.2,3139.7,0.1133233]
[1720629660010,1.7338298,3140.1,3139.7,0.1133233]
[1720629660210,1.7338313,3140.0,3139.7,0.1133233]
[1720629660413,1.73390729,3139.9,3139.7,0.1133233]
[1720629660648,1.10393026,3139.8,3139.7,0.1133233]
[1720629660864,1.10393026,3140.0,3139.7,0.1133233]
[1720629661017,1.7338962,3139.9,3139.7,0.1133233]
[1720629661217,1.10393026,3139.8,3139.7,0.1133233]
[1720629661652,1.10397464,3139.8,3139.7,0.1133233]
[1720629663922,1.43670305,3139.8,3139.7,0.1133233]
[1720629665069,1.43667822,3139.8,3139.7,0.1133233]
[1720629665236,1.43667822,3139.8,3139.7,0.17419251]
[1720629666872,1.10394981,3139.8,3139.7,0.17419251]
[1720629668356,1.10378029,3139.8,3139.7,0.17419251]
[1720629670748,1.10378029,3139.8,3139.7,0.42278176]
[1720629671663,0.33268571,3140.3,3139.7,0.42278176]
[1720629671857,1.10375017,3140.2,3139.7,0.17419251]
[1720629672173,1.10375017,3140.1,3139.7,0.17419251]
[1720629672551,1.10375017,3140.0,3139.7,0.17419251]
[1720629672750,1.10375017,3140.2,3139.7,0.42278176]
[1720629673275,1.10375017,3140.2,3139.7,0.17419251]
[1720629675250,1.1038433,3140.1,3139.7,0.17419251]
[1720629675445,1.1038433,3140.1,3139.7,0.1133233]
[1720629675446,1.1038433,3140.0,3139.7,0.1133233]
[1720629675645,1.73365447,3139.9,3139.7,0.1133233]
[1720629675898,1.1038433,3139.8,3139.7,0.1133233]
[1720629676886,1.1038433,3140.2,3139.7,0.1133233]
[1720629677086,1.1038433,3140.1,3139.7,0.17423372]
[1720629677293,1.1038433,3140.0,3139.7,0.17423372]
[1720629677450,3.4603433,3139.9,3139.7,0.17423372]
[1720629677655,2.07978172,3139.8,3139.7,0.1133233]
[1720629678451,2.07995009,3139.8,3139.7,0.1133233]
[1720629680389,1.73391576,3139.8,3139.7,0.1133233]
[1720629680601,1.10396362,3139.8,3139.7,0.1133233]
[1720629680812,1.73382079,3139.8,3139.7,0.1133233]
[1720629681092,1.73385052,3139.8,3139.7,0.174326]
[1720629681275,1.10396362,3139.8,3139.7,0.174326]
[1720629681958,1.10385265,3139.8,3139.7,0.174326]
[1720629683774,2.4918,3140.5,3139.7,0.174326]
[1720629683981,1.98281059,3140.4,3139.7,0.174326]
[1720629684305,1.73363059,3140.3,3139.7,0.174326]
[1720629684460,1.73363059,3140.2,3139.7,0.174326]